[Event "2nd Cambridge Open 2024"]
[Site "Cambridge"]
[Date "2024.02.19"]
[Round "2.40"]
[White "Wynarczyk, Raymond"]
[Black "Iyengar, Ilya"]
[Result "1-0"]
[ECO "B22"]
[WhiteElo "1703"]
[BlackElo "1972"]
[Annotator "RC"]
[PlyCount "109"]
[EventDate "2024.02.18"]
[EventType "swiss"]
[EventCountry "ENG"]
[SourceTitle "playchess.com"]
[Source "ChessBase"]
[SourceQuality "1"]
[TimeControl "5400+30"]

1. e4 {[%emt 0:00:04]} c5 {[%emt 0:00:31]} 2. c3 {[%emt 0:00:12]} d5 {[%emt 0:00:14]} 3. exd5 {[%emt 0:00:09]} Qxd5 {[%emt 0:00:05]} 4. d4 {[%emt 0:00:21]} Nc6 {[%emt 0:00:19]} 5. Nf3 {[%emt 0:00:24]} Bg4 {[%emt 0:00:16]} 6. dxc5 {[%emt 0:01:20]} Qxc5 {[%emt 0:01:23]} 7. Be3 {[%emt 0:00:58]} Qa5 {[%emt 0:00:56]} 8. Be2 {[%emt 0:03:18]} Nf6 {[%emt 0:02:32]} 9. h3 {[%emt 0:01:43]} Bh5 {[%emt 0:01:13]} 10. Qb3 {[%emt 0:07:45]} Qc7 {[%emt 0:03:28]} 11. Na3 {[%emt 0:02:56]} e6 {[%emt 0:12:31]} 12. Nb5 {[%emt 0:02:51]} Qb8 {[%emt 0:01:32]} 13. Nbd4 {[%emt 0:01:36]} Nxd4 {[%emt 0:11:44]} 14. Bxd4 {[%emt 0:02:18]} a6 {[%emt 0:40:38]} 15. Bxf6 {[%emt 0:08:13]} gxf6 {[%emt 0:00:45]} 16. Bb5+ {[%emt 0:01:00]} axb5 {[%emt 0:08:59]} 17. Qxb5+ {[%emt 0:00:11]} Ke7 {[%emt 0:00:19]} 18. Qxh5 {[%emt 0:06:15]} Qc7 {[%emt 0:03:25]} 19. O-O {[%emt 0:03:19]} Ra5 {[%emt 0:01:29]} 20. Qh4 {[%emt 0:03:29]} h5 {[%emt 0:00:54]} 21. Rfd1 {[%emt 0:04:23]} Rg8 {[%emt 0:02:00]} 22. Rd4 {[%emt 0:02:22]} Rf5 {[%emt 0:01:10]} 23. Qe4 {[%emt 0:03:31]} Qc6 {[%emt 0:05:03]} 24. Qxf5 {[%emt 0:03:47]} exf5 {[%emt 0:00:30]} 25. Re1+ {[%emt 0:00:08]} Qe6 {[%emt 0:00:21]} 26. Rb4 {[%emt 0:02:02]} Bh6 {[%emt 0:00:36]} 27. Rxb7+ {[%emt 0:01:08]} Kd6 {[%emt 0:00:08]} 28. Rb6+ {[%emt 0:03:37]} Kd7 {[%emt 0:00:23]} 29. Rd1+ {[%emt 0:01:43]} Kc7 {[%emt 0:00:17]} 30. Rxe6 {[%emt 0:00:18]} fxe6 {[%emt 0:00:05]} 31. Nd4 {[%emt 0:01:05]} Re8 {[%emt 0:00:10]} 32. Re1 {[%emt 0:01:11]} Kd7 {[%emt 0:00:14]} 33. a4 {[%emt 0:02:33]} Bf4 {[%emt 0:00:53]} 34. a5 {[%emt 0:03:57]} Bc7 {[%emt 0:01:09]} 35. b4 {[%emt 0:00:40]} Be5 {[%emt 0:00:19]} 36. a6 {[%emt 0:04:47]} Rc8 {[%emt 0:01:26]} 37. a7 {[%emt 0:02:43]} Ra8 {[%emt 0:00:30]} 38. Ra1 {[%emt 0:00:28]} Bxd4 {[%emt 0:00:31]} 39. cxd4 {[%emt 0:00:07]} Kc6 {[%emt 0:00:07]} 40. Ra6+ {[%emt 0:01:28]} Kb5 {[%emt 0:00:53]} 41. Rxe6 {[%emt 0:00:24]} Rxa7 {[%emt 0:00:14]} 42. Rxf6 {[%emt 0:00:23]} Kxb4 {[%emt 0:00:26]} 43. Rxf5 {[%emt 0:00:15]} Kc4 {[%emt 0:00:23]} 44. Rxh5 {[%emt 0:01:12]} Kxd4 {[%emt 0:00:06]} 45. Rf5 {[%emt 0:00:34]} Ke4 {[%emt 0:00:16]} 46. Rf8 {[%emt 0:00:21]} Ke5 {[%emt 0:01:04]} 47. g4 {[%emt 0:00:29]} Ke4 {[%emt 0:00:27]} 48. Kg2 {[%emt 0:00:22]} Ra3 {[%emt 0:00:16]} 49. g5 {[%emt 0:01:16]} Rb3 {[%emt 0:00:12]} 50. h4 {[%emt 0:00:36]} Ra3 {[%emt 0:00:16]} 51. g6 {[%emt 0:01:03]} Ra6 {[%emt 0:00:13]} 52. h5 {[%emt 0:00:19]} Ra5 {[%emt 0:00:06]} 53. Rf3 {[%emt 0:04:53]} Rxh5 {[%emt 0:01:27]} 54. g7 {[%emt 0:00:20]} Rg5+ {[%emt 0:00:11]} 55. Rg3 {[%emt 0:00:06]} 1-0

[Event "2nd Cambridge Open 2024"]
[Site "Cambridge"]
[Date "2024.02.19"]
[Round "2.41"]
[White "Redman, David J"]
[Black "Gardiner, Eric D"]
[Result "1/2-1/2"]
[ECO "D30"]
[WhiteElo "1971"]
[BlackElo "1837"]
[Annotator "RC"]
[PlyCount "69"]
[EventDate "2024.02.18"]
[EventType "swiss"]
[EventCountry "ENG"]
[SourceTitle "playchess.com"]
[Source "ChessBase"]
[SourceQuality "1"]
[TimeControl "5400+30"]

1. d4 {[%emt 0:00:02]} d5 {[%emt 0:00:06]} 2. c4 {[%emt 0:00:07]} e6 {[%emt 0:00:07]} 3. Nf3 {[%emt 0:00:17]} a6 {[%emt 0:00:08]} 4. Nc3 {[%emt 0:00:55]} dxc4 {[%emt 0:00:22]} 5. a4 {[%emt 0:04:55]} Nc6 {[%emt 0:01:07]} 6. e4 {[%emt 0:07:30]} Na5 {[%emt 0:01:40]} 7. Be3 {[%emt 0:02:04]} c6 {[%emt 0:02:18]} 8. Nd2 {[%emt 0:02:51]} b5 {[%emt 0:12:35]} 9. e5 {[%emt 0:00:34]} Bb4 {[%emt 0:06:04]} 10. Qg4 {[%emt 0:05:34]} Kf8 {[%emt 0:03:52]} 11. Na2 {[%emt 0:26:51]} Bxd2+ {[%emt 0:11:58]} 12. Bxd2 {[%emt 0:00:47]} Nb3 {[%emt 0:00:35]} 13. Rd1 {[%emt 0:05:56]} Nxd2 {[%emt 0:01:17]} 14. Rxd2 {[%emt 0:00:03]} Ne7 {[%emt 0:08:18]} 15. Nc3 {[%emt 0:04:07]} Nd5 {[%emt 0:04:51]} 16. Ne4 {[%emt 0:01:28]} Qa5 {[%emt 0:11:12]} 17. Qf3 {[%emt 0:03:31]} Qxa4 {[%emt 0:05:53]} 18. Nd6 {[%emt 0:05:14]} Qa1+ {[%emt 0:02:30]} 19. Ke2 {[%emt 0:00:03]} f5 {[%emt 0:01:33]} 20. g3 {[%emt 0:04:47]} c3 {[%emt 0:04:41]} 21. Qh5 {[%emt 0:03:06]} g6 {[%emt 0:03:38]} 22. Qh6+ {[%emt 0:00:04]} Kg8 {[%emt 0:01:02]} 23. bxc3 {[%emt 0:08:11]} Nxc3+ {[%emt 0:02:53]} 24. Kf3 {[%emt 0:01:46]} Ne4 {[%emt 0:03:07]} 25. Qh4 {[%emt 0:08:02]} Nxd6 {[%emt 0:05:46]} 26. Qd8+ {[%emt 0:00:07]} Kg7 {[%emt 0:00:18]} 27. Qf6+ {[%emt 0:00:08]} Kh6 {[%emt 0:01:44]} 28. Qxh8 {[%emt 0:02:28]} Bb7 {[%emt 0:00:38]} 29. Qf6 {[%emt 0:00:03]} c5+ {[%emt 0:01:40]} 30. d5 {[%emt 0:00:04]} Ne4 {[%emt 0:01:16]} 31. Qh4+ {[%emt 0:00:15]} Kg7 {[%emt 0:00:04]} 32. Qe7+ {[%emt 0:01:13]} Kh6 {[%emt 0:00:05]} 33. Qh4+ {[%emt 0:02:18]} Kg7 {[%emt 0:00:05]} 34. Qe7+ {[%emt 0:00:15]} Kh6 {[%emt 0:00:01]} 35. Qh4+ {[%emt 0:00:16]} 1/2-1/2

[Event "2nd Cambridge Open 2024"]
[Site "Cambridge"]
[Date "2024.02.19"]
[Round "2.42"]
[White "Hutchinson, Norman A"]
[Black "Rida, Ruqayyah"]
[Result "0-1"]
[ECO "C77"]
[WhiteElo "1962"]
[BlackElo "1743"]
[Annotator "RC"]
[PlyCount "62"]
[EventDate "2024.02.18"]
[EventType "swiss"]
[EventCountry "ENG"]
[SourceTitle "playchess.com"]
[Source "ChessBase"]
[SourceQuality "1"]
[TimeControl "5400+30"]

1. e4 {[%emt 0:00:03]} e5 {[%emt 0:00:08]} 2. Nf3 {[%emt 0:00:05]} Nc6 {[%emt 0:00:09]} 3. Bb5 {[%emt 0:00:05]} a6 {[%emt 0:00:08]} 4. Ba4 {[%emt 0:00:05]} Nf6 {[%emt 0:00:11]} 5. d3 {[%emt 0:00:25]} b5 {[%emt 0:00:14]} 6. Bb3 {[%emt 0:00:07]} Bc5 {[%emt 0:00:10]} 7. a4 {[%emt 0:00:20]} Rb8 {[%emt 0:00:17]} 8. axb5 {[%emt 0:02:14]} axb5 {[%emt 0:00:07]} 9. O-O {[%emt 0:00:18]} O-O {[%emt 0:03:59]} 10. Nc3 {[%emt 0:02:55]} h6 {[%emt 0:03:16]} 11. Nd5 {[%emt 0:02:30]} d6 {[%emt 0:02:09]} 12. Be3 {[%emt 0:02:11]} Bxe3 {[%emt 0:03:39]} 13. fxe3 {[%emt 0:00:12]} Nxd5 {[%emt 0:01:28]} 14. exd5 {[%emt 0:01:58]} Ne7 {[%emt 0:01:07]} 15. Qe1 {[%emt 0:00:40]} f5 {[%emt 0:08:30]} 16. Nxe5 {[%emt 0:02:39]} dxe5 {[%emt 0:00:41]} 17. d6+ {[%emt 0:00:08]} Kh7 {[%emt 0:00:11]} 18. dxe7 {[%emt 0:00:15]} Qxe7 {[%emt 0:00:06]} 19. Kh1 {[%emt 0:07:24]} Bb7 {[%emt 0:07:53]} 20. Qg3 {[%emt 0:06:26]} c5 {[%emt 0:08:25]} 21. c3 {[%emt 0:04:57]} Rf6 {[%emt 0:03:16]} 22. Qh4 {[%emt 0:13:15]} Rbf8 {[%emt 0:11:28]} 23. Bc2 {[%emt 0:05:04]} Kh8 {[%emt 0:04:05]} 24. e4 {[%emt 0:05:26]} fxe4 {[%emt 0:01:14]} 25. Rxf6 {[%emt 0:00:24]} Rxf6 {[%emt 0:00:35]} 26. Qg3 {[%emt 0:01:50]} Qf7 {[%emt 0:06:21]} 27. Kg1 {[%emt 0:03:13]} Rg6 {[%emt 0:03:11]} 28. Qxe5 {[%emt 0:08:14]} Rxg2+ {[%emt 0:01:33]} 29. Kxg2 {[%emt 0:00:27]} e3+ {[%emt 0:00:10]} 30. Kh3 {[%emt 0:00:38]} Qf3+ {[%emt 0:00:09]} 31. Qg3 {[%emt 0:00:41]} Bc8+ {[%emt 0:00:06]} 0-1

[Event "2nd Cambridge Open 2024"]
[Site "Cambridge"]
[Date "2024.02.19"]
[Round "2.43"]
[White "Cole, James"]
[Black "Spanton, Tim R"]
[Result "1/2-1/2"]
[ECO "E08"]
[WhiteElo "1940"]
[BlackElo "1736"]
[Annotator "RC"]
[PlyCount "107"]
[EventDate "2024.02.18"]
[EventType "swiss"]
[EventCountry "ENG"]
[SourceTitle "playchess.com"]
[Source "ChessBase"]
[SourceQuality "1"]
[TimeControl "5400+30"]

1. d4 {[%emt 0:00:04]} d5 {[%emt 0:00:05]} 2. c4 {[%emt 0:00:06]} e6 {[%emt 0:00:05]} 3. Nf3 {[%emt 0:00:04]} Nf6 {[%emt 0:00:04]} 4. g3 {[%emt 0:00:06]} Bb4+ {[%emt 0:00:06]} 5. Bd2 {[%emt 0:00:07]} Be7 {[%emt 0:00:05]} 6. Bg2 {[%emt 0:00:06]} O-O {[%emt 0:00:09]} 7. Qc2 {[%emt 0:00:18]} c6 {[%emt 0:00:18]} 8. O-O {[%emt 0:00:07]} b6 {[%emt 0:01:22]} 9. Rd1 {[%emt 0:00:50]} Bb7 {[%emt 0:00:38]} 10. Bf4 {[%emt 0:01:46]} Nbd7 {[%emt 0:02:30]} 11. Ne5 {[%emt 0:15:01]} Nxe5 {[%emt 0:02:43]} 12. dxe5 {[%emt 0:00:27]} Nd7 {[%emt 0:00:26]} 13. e4 {[%emt 0:06:51]} g5 {[%emt 0:03:19]} 14. Be3 {[%emt 0:04:38]} Nxe5 {[%emt 0:00:19]} 15. exd5 {[%emt 0:01:21]} cxd5 {[%emt 0:00:52]} 16. cxd5 {[%emt 0:03:20]} Bxd5 {[%emt 0:01:19]} 17. Nc3 {[%emt 0:03:18]} Qc7 {[%emt 0:06:56]} 18. Bxd5 {[%emt 0:10:19]} exd5 {[%emt 0:00:12]} 19. Qf5 {[%emt 0:00:19]} Ng6 {[%emt 0:17:40]} 20. Nxd5 {[%emt 0:06:47]} Qb7 {[%emt 0:03:56]} 21. Bxg5 {[%emt 0:00:52]} Bxg5 {[%emt 0:05:13]} 22. Qxg5 {[%emt 0:00:18]} f5 {[%emt 0:00:36]} 23. Nf4 {[%emt 0:04:02]} Qe7 {[%emt 0:01:56]} 24. Qxe7 {[%emt 0:01:03]} Nxe7 {[%emt 0:00:05]} 25. Rd7 {[%emt 0:01:18]} Ng6 {[%emt 0:01:08]} 26. Ne6 {[%emt 0:01:32]} Rf7 {[%emt 0:02:59]} 27. Rad1 {[%emt 0:02:51]} Rxd7 {[%emt 0:02:30]} 28. Rxd7 {[%emt 0:01:35]} Re8 {[%emt 0:01:09]} 29. Rd8 {[%emt 0:01:50]} Rxd8 {[%emt 0:00:33]} 30. Nxd8 {[%emt 0:00:05]} Ne5 {[%emt 0:00:19]} 31. b4 {[%emt 0:04:36]} b5 {[%emt 0:02:52]} 32. Ne6 {[%emt 0:03:53]} Nc6 {[%emt 0:04:05]} 33. Nc7 {[%emt 0:03:32]} Nxb4 {[%emt 0:00:57]} 34. Nxb5 {[%emt 0:00:08]} Nxa2 {[%emt 0:01:35]} 35. Nxa7 {[%emt 0:00:05]} Kf7 {[%emt 0:00:14]} 36. f4 {[%emt 0:01:06]} Ke6 {[%emt 0:00:38]} 37. Nc6 {[%emt 0:01:16]} Nc3 {[%emt 0:01:46]} 38. Nd4+ {[%emt 0:00:47]} Kf6 {[%emt 0:00:24]} 39. Kg2 {[%emt 0:02:34]} Nd5 {[%emt 0:02:48]} 40. Kf3 {[%emt 0:01:02]} h5 {[%emt 0:00:29]} 41. Ke2 {[%emt 0:02:35]} Kg6 {[%emt 0:03:11]} 42. Nf3 {[%emt 0:00:49]} Kf6 {[%emt 0:01:46]} 43. Kd3 {[%emt 0:00:15]} Ke6 {[%emt 0:01:07]} 44. Nd4+ {[%emt 0:02:28]} Kf6 {[%emt 0:00:17]} 45. Nc2 {[%emt 0:01:46]} h4 {[%emt 0:03:13]} 46. Kc4 {[%emt 0:01:56]} hxg3 {[%emt 0:00:26]} 47. hxg3 {[%emt 0:00:04]} Ne7 {[%emt 0:01:42]} 48. Kc5 {[%emt 0:00:33]} Ng8 {[%emt 0:03:02]} 49. Ne3 {[%emt 0:02:13]} Ke6 {[%emt 0:00:31]} 50. Nc2 {[%emt 0:01:11]} Nh6 {[%emt 0:01:13]} 51. Nd4+ {[%emt 0:00:18]} Kf6 {[%emt 0:00:19]} 52. Kd6 {[%emt 0:00:39]} Ng4 {[%emt 0:00:38]} 53. Nc2 {[%emt 0:03:06]} Nf2 {[%emt 0:00:37]} 54. Ne3 {[%emt 0:00:22]} 1/2-1/2

[Event "2nd Cambridge Open 2024"]
[Site "Cambridge"]
[Date "2024.02.19"]
[Round "2.44"]
[White "Lim, Mark"]
[Black "Dierssen Garcia-Barredo, Guiller"]
[Result "1/2-1/2"]
[ECO "A37"]
[WhiteElo "2265"]
[BlackElo "1937"]
[Annotator "TA"]
[PlyCount "71"]
[EventDate "2024.02.18"]
[EventType "swiss"]
[EventCountry "ENG"]
[SourceTitle "playchess.com"]
[Source "ChessBase"]
[SourceQuality "1"]
[TimeControl "5400+30"]

{[%evp 24,71,-19,-21,0,0,0,10,93,39,117,120,124,123,151,172,179,70,55,0,154,135,175,108,145,90,107,31,160,157,189,168,441,454,462,436,511,510,635,649,654,656,716,688,681,687,708,678,773,725]} 1. Nf3 {[%emt 0:00:03]} c5 {[%emt 0:00:08]} 2. g3 {[%emt 0:00:03]} g6 {[%emt 0:00:08]} 3. c4 {[%emt 0:01:30]} Nc6 {[%emt 0:00:14]} 4. Bg2 {[%emt 0:00:08]} Bg7 {[%emt 0:00:10]} 5. Nc3 {[%emt 0:00:33]} e5 {[%emt 0:00:09]} 6. O-O {[%emt 0:00:48]} Nge7 {[%emt 0:00:08]} 7. a3 {[%emt 0:01:02]} d6 {[%emt 0:01:02]} 8. Rb1 {[%emt 0:01:29]} a5 {[%emt 0:00:23]} 9. Ne1 {[%emt 0:00:56]} Be6 {[%emt 0:00:13]} 10. d3 {[%emt 0:00:24]} O-O {[%emt 0:00:21]} 11. Nc2 {[%emt 0:00:44]} d5 {[%emt 0:00:34]} 12. cxd5 {[%emt 0:02:41]} Nxd5 {[%emt 0:00:10]} 13. Ne3 {[%emt 0:05:52]} Nc7 {[%emt 0:19:49]} 14. Nc4 {[%emt 0:05:45]} Qe7 {[%emt 0:03:12]} 15. Be3 {[%emt 0:03:55]} h6 {[%emt 0:00:58]} (15... Rfb8 $11 {keeps the balance.}) 16. Qc1 {[%emt 0:03:07]} ({White should play} 16. Bxc6 $16 bxc6 17. Nb6) 16... Kh7 {[%emt 0:00:22]} (16... Bxc4 $1 $14 17. dxc4 Kh7) 17. Bxc6 $16 {[%emt 0:03:38]} bxc6 {[%emt 0:00:09]} 18. Ne4 {[%emt 0:00:43]} Rfd8 {[%emt 0:04:09]} 19. Bxc5 {[%emt 0:03:57]} (19. Nxc5 $6 Bh3 $16) 19... Qe8 {[%emt 0:01:03]} 20. Ncd6 {[%emt 0:02:37] Excellent horsemanship.} (20. Ned6 $18 Qh8 21. Bb6) 20... Qd7 $14 {[%emt 0:00:47]} 21. Nc4 {[%emt 0:02:44]} (21. Rd1 $14) 21... Nd5 $2 {[%emt 0:05:13]} ({Better is} 21... Qe8 $1 $11) 22. Bb6 {[%emt 0:03:33] [#] Strongly threatening Nc5. White is more active.} Bh3 {[%emt 0:04:50]} 23. Re1 {[%emt 0:01:48]} (23. Bxd8 $18 Bxf1 24. Qxf1 (24. Bxa5 Bxe2 25. b4 Qh3 $15) (24. Kxf1 Qxd8 25. Kg1 Nc7 $18) 24... Qxd8 25. Rc1) 23... Rf8 {[%emt 0:06:19]} 24. Bxa5 {[%emt 0:02:09]} (24. Bc5 $142) 24... f5 $16 {[%emt 0:00:16]} 25. Nc3 {[%emt 0:05:21]} (25. Nc5 $16 Qe7 26. Bb4) 25... f4 {[%emt 0:01:55]} ({Black should try} 25... Qf7 $14) 26. Ne4 {[%emt 0:07:24]} Qf5 {[%emt 0:04:56]} 27. Bb4 {[%emt 0:02:41]} Nf6 $2 {[%emt 0:15:16]} (27... Nxb4 {was worth a try.} 28. axb4 f3) 28. Bxf8 $18 {[%emt 0:05:24] White is clearly winning.} Rxf8 {[%emt 0:00:03]} 29. Ncd6 {[%emt 0:03:57][%csl LRc6,LRf5]} Qh5 {[%emt 0:00:18]} 30. Nxf6+ {[%emt 0:03:37]} (30. gxf4 exf4 31. f3 (31. Qxf4 $2 {too greedy.} Nxe4 32. Qxe4 Be5 $19) (31. Nxf6+ Rxf6 32. Ne4 Qg4+ 33. Ng3 Re6 $19) 31... Ng4 32. Qxc6 (32. fxg4 Qxg4+) 32... Bd4+ 33. e3 (33. Kh1 $2 Bg2+ 34. Kxg2 Qxh2+ 35. Kf1 Ne3#) 33... Nxh2 (33... Nxe3 34. Nb5 $17) 34. Qc7+ (34. exd4 $2 Nxf3+ 35. Kf2 Qh4+ 36. Ke2 Nxd4+ 37. Kd2 Nxc6 $19) 34... Bg7 $19) 30... Bxf6 {[%emt 0:01:20]} 31. Qxc6 {[%emt 0:02:26]} (31. gxf4 $2 {is a self mate.} Qg4+ 32. Kh1 Qg2#) 31... Bd8 {[%emt 0:01:58]} 32. Rbc1 {[%emt 0:04:35]} Bg4 {[%emt 0:09:19]} 33. Qb7+ {[%emt 0:04:43]} Kg8 {[%emt 0:02:16]} 34. Qd5+ {[%emt 0:01:07]} Kh7 {[%emt 0:00:06]} 35. Rc2 {[%emt 0:11:10] [#] Threatens to win with Rec1.} f3 {[%emt 0:00:14]} 36. Qb7+ {[%emt 0:01:54][%mdl 32768] Weighted Error Value: White=0.18 (very precise) /Black=0.62.  Mistake:       	White=6     	Black=5      Inaccurate:     	---       	Black=1      OK:         	White=8     	Black=2      Best:        	White=2     	Black=2     . An unexpected result.} 1/2-1/2

[Event "2nd Cambridge Open 2024"]
[Site "Cambridge"]
[Date "2024.02.19"]
[Round "2.45"]
[White "Mata, Adilson"]
[Black "Sasikumar, Srivathsan"]
[Result "1-0"]
[ECO "E08"]
[WhiteElo "1924"]
[BlackElo "1696"]
[Annotator "RC"]
[PlyCount "121"]
[EventDate "2024.02.18"]
[EventType "swiss"]
[EventCountry "ENG"]
[SourceTitle "playchess.com"]
[Source "ChessBase"]
[SourceQuality "1"]
[TimeControl "5400+30"]

1. d4 {[%emt 0:02:52]} Nf6 {[%emt 0:00:15]} 2. Nf3 {[%emt 0:00:05]} d5 {[%emt 0:00:06]} 3. g3 {[%emt 0:00:10]} e6 {[%emt 0:00:29]} 4. Bg2 {[%emt 0:00:05]} Be7 {[%emt 0:00:07]} 5. O-O {[%emt 0:00:08]} Nbd7 {[%emt 0:00:05]} 6. c4 {[%emt 0:00:39]} c6 {[%emt 0:00:16]} 7. Nc3 {[%emt 0:01:35]} O-O {[%emt 0:00:22]} 8. Qc2 {[%emt 0:02:05]} b6 {[%emt 0:01:27]} 9. Rd1 {[%emt 0:02:45]} Bb7 {[%emt 0:02:00]} 10. b3 {[%emt 0:03:14]} Rc8 {[%emt 0:02:31]} 11. e4 {[%emt 0:03:27]} dxe4 {[%emt 0:00:22]} 12. Nxe4 {[%emt 0:00:11]} Nxe4 {[%emt 0:02:13]} 13. Qxe4 {[%emt 0:00:07]} Nf6 {[%emt 0:00:04]} 14. Qe2 {[%emt 0:00:42]} Qc7 {[%emt 0:00:37]} 15. Bf4 {[%emt 0:10:09]} Bd6 {[%emt 0:00:28]} 16. Ne5 {[%emt 0:07:35]} Nd7 {[%emt 0:02:00]} 17. c5 {[%emt 0:03:43]} Bxe5 {[%emt 0:01:32]} 18. cxb6 {[%emt 0:00:21]} axb6 {[%emt 0:00:19]} 19. dxe5 {[%emt 0:00:11]} Rfd8 {[%emt 0:02:22]} 20. Rd6 {[%emt 0:06:05]} Nf8 {[%emt 0:02:59]} 21. Rad1 {[%emt 0:01:39]} Ng6 {[%emt 0:01:54]} 22. Bg5 {[%emt 0:07:05]} Rxd6 {[%emt 0:03:30]} 23. exd6 {[%emt 0:00:56]} Qd7 {[%emt 0:00:04]} 24. Qe4 {[%emt 0:10:48]} Rb8 {[%emt 0:07:28]} 25. Qb4 {[%emt 0:05:04]} Ba8 {[%emt 0:03:15]} 26. Qa4 {[%emt 0:06:00]} f6 {[%emt 0:07:49]} 27. Be3 {[%emt 0:02:51]} b5 {[%emt 0:01:28]} 28. Qa7 {[%emt 0:02:55]} Rd8 {[%emt 0:01:18]} 29. Qxd7 {[%emt 0:05:58]} Rxd7 {[%emt 0:00:13]} 30. f4 {[%emt 0:00:02]} Ne7 {[%emt 0:00:42]} 31. Bc5 {[%emt 0:02:34]} Nd5 {[%emt 0:00:24]} 32. Re1 {[%emt 0:00:50]} Kf7 {[%emt 0:00:32]} 33. Bh3 {[%emt 0:00:22]} f5 {[%emt 0:00:09]} 34. a4 {[%emt 0:00:21]} bxa4 {[%emt 0:00:54]} 35. bxa4 {[%emt 0:00:15]} Nc3 {[%emt 0:00:02]} 36. a5 {[%emt 0:08:39]} Ne4 {[%emt 0:00:07]} 37. Rxe4 {[%emt 0:00:07]} fxe4 {[%emt 0:00:11]} 38. f5 {[%emt 0:00:06]} exf5 {[%emt 0:01:59]} 39. Bxf5 {[%emt 0:00:13]} Rb7 {[%emt 0:01:26]} 40. d7 {[%emt 0:02:32]} Rb1+ {[%emt 0:01:06]} 41. Kf2 {[%emt 0:00:58]} Rd1 {[%emt 0:00:23]} 42. Bb6 {[%emt 0:00:57]} Ke7 {[%emt 0:02:56]} 43. d8=Q+ {[%emt 0:00:41]} Rxd8 {[%emt 0:00:10]} 44. Bxd8+ {[%emt 0:00:12]} Kxd8 {[%emt 0:00:03]} 45. Bxh7 {[%emt 0:00:11]} Kc7 {[%emt 0:02:16]} 46. Ke3 {[%emt 0:00:07]} Kb7 {[%emt 0:00:29]} 47. Bxe4 {[%emt 0:00:42]} Ka6 {[%emt 0:00:06]} 48. h4 {[%emt 0:00:56]} Kxa5 {[%emt 0:00:20]} 49. h5 {[%emt 0:00:07]} Bb7 {[%emt 0:00:26]} 50. g4 {[%emt 0:00:41]} Bc8 {[%emt 0:00:02]} 51. g5 {[%emt 0:00:03]} Be6 {[%emt 0:00:05]} 52. Bxc6 {[%emt 0:01:38]} Kb6 {[%emt 0:00:50]} 53. h6 {[%emt 0:01:24]} gxh6 {[%emt 0:00:10]} 54. gxh6 {[%emt 0:00:03]} Bg8 {[%emt 0:00:13]} 55. Bd5 {[%emt 0:00:10]} Bh7 {[%emt 0:00:15]} 56. Be4 {[%emt 0:00:16]} Bg8 {[%emt 0:00:27]} 57. Kd4 {[%emt 0:00:33]} Kc7 {[%emt 0:00:18]} 58. Ke5 {[%emt 0:00:06]} Kd7 {[%emt 0:00:05]} 59. Kf6 {[%emt 0:00:17]} Ke8 {[%emt 0:00:07]} 60. Kg7 {[%emt 0:00:16]} Bh7 {[%emt 0:00:21]} 61. Bxh7 {[%emt 0:00:28]} 1-0

[Event "2nd Cambridge Open 2024"]
[Site "Cambridge"]
[Date "2024.02.19"]
[Round "2.46"]
[White "Hagesather, Nina"]
[Black "Baguley, John"]
[Result "1-0"]
[ECO "B18"]
[WhiteElo "1973"]
[BlackElo "1790"]
[Annotator "RC"]
[PlyCount "91"]
[EventDate "2024.02.18"]
[EventType "swiss"]
[EventCountry "ENG"]
[SourceTitle "playchess.com"]
[Source "ChessBase"]
[SourceQuality "1"]
[TimeControl "5400+30"]

1. e4 {[%emt 0:00:04]} c6 {[%emt 0:00:11]} 2. d4 {[%emt 0:00:06]} d5 {[%emt 0:00:11]} 3. Nc3 {[%emt 0:00:05]} dxe4 {[%emt 0:01:50]} 4. Nxe4 {[%emt 0:00:08]} Bf5 {[%emt 0:00:08]} 5. Ng3 {[%emt 0:00:07]} Bg6 {[%emt 0:00:15]} 6. Nf3 {[%emt 0:00:07]} e6 {[%emt 0:00:54]} 7. h4 {[%emt 0:00:20]} h5 {[%emt 0:00:51]} 8. Ne5 {[%emt 0:14:48]} Ne7 {[%emt 0:06:12]} 9. c3 {[%emt 0:03:42]} Nd7 {[%emt 0:03:37]} 10. Nxg6 {[%emt 0:07:51]} Nxg6 {[%emt 0:01:20]} 11. Nxh5 {[%emt 0:07:05]} Nxh4 {[%emt 0:05:38]} 12. g3 {[%emt 0:06:57]} Ng6 {[%emt 0:01:39]} 13. Bd3 {[%emt 0:05:26]} f5 {[%emt 0:07:25]} 14. Qb3 {[%emt 0:09:41]} Kf7 {[%emt 0:14:28]} 15. Qxb7 {[%emt 0:10:33]} Qc8 {[%emt 0:07:11]} 16. Qxc8 {[%emt 0:00:34]} Rxc8 {[%emt 0:00:07]} 17. Be3 {[%emt 0:03:17]} Be7 {[%emt 0:10:02]} 18. O-O-O {[%emt 0:02:05]} Nf6 {[%emt 0:04:17]} 19. Nxf6 {[%emt 0:00:37]} Bxf6 {[%emt 0:01:00]} 20. Be2 {[%emt 0:01:11]} Ne7 {[%emt 0:01:15]} 21. Bf3 {[%emt 0:00:55]} Nd5 {[%emt 0:01:48]} 22. Bd2 {[%emt 0:02:06]} g6 {[%emt 0:03:45]} 23. Kc2 {[%emt 0:00:50]} c5 {[%emt 0:01:56]} 24. Rxh8 {[%emt 0:00:49]} Bxh8 {[%emt 0:00:35]} 25. Bxd5 {[%emt 0:00:19]} exd5 {[%emt 0:00:12]} 26. dxc5 {[%emt 0:03:16]} Rxc5 {[%emt 0:00:11]} 27. Be3 {[%emt 0:01:01]} Ra5 {[%emt 0:01:06]} 28. Bd4 {[%emt 0:03:46]} Bxd4 {[%emt 0:00:53]} 29. Rxd4 {[%emt 0:00:03]} Ke6 {[%emt 0:00:19]} 30. a4 {[%emt 0:00:43]} Ra6 {[%emt 0:02:47]} 31. Kd3 {[%emt 0:01:20]} Rc6 {[%emt 0:02:19]} 32. Rb4 {[%emt 0:00:43]} Rc7 {[%emt 0:03:15]} 33. Rb8 {[%emt 0:08:11]} Rc6 {[%emt 0:03:23]} 34. a5 {[%emt 0:01:03]} Kd6 {[%emt 0:01:57]} 35. Rb7 {[%emt 0:02:05]} a6 {[%emt 0:04:45]} 36. Rb6 {[%emt 0:01:12]} Rxb6 {[%emt 0:01:53]} 37. axb6 {[%emt 0:00:02]} Kc6 {[%emt 0:00:10]} 38. Kd4 {[%emt 0:00:06]} Kxb6 {[%emt 0:00:12]} 39. Kxd5 {[%emt 0:00:04]} Kc7 {[%emt 0:03:19]} 40. Ke5 {[%emt 0:01:37]} Kc6 {[%emt 0:00:45]} 41. b3 {[%emt 0:00:26]} a5 {[%emt 0:01:04]} 42. Kf6 {[%emt 0:01:49]} Kd5 {[%emt 0:00:22]} 43. f3 {[%emt 0:00:31]} Kd6 {[%emt 0:01:01]} 44. Kxg6 {[%emt 0:00:06]} Ke5 {[%emt 0:00:18]} 45. Kg5 {[%emt 0:00:06]} Ke6 {[%emt 0:02:16]} 46. f4 {[%emt 0:00:09]} 1-0